[Event "Alef Super Stars Standard 2023"]
[Site "Almamsha"]
[Date "2023.12.03"]
[Round "6.1"]
[White "Salem, A.R. Saleh"]
[Black "Yu, Yangyi"]
[Result "1/2-1/2"]
[ECO "E11"]
[WhiteElo "2635"]
[BlackElo "2720"]
[Annotator "TA"]
[PlyCount "66"]
[EventDate "2023.11.27"]
[EventType "tourn"]
[EventCountry "UAE"]
[SourceTitle "playchess.com"]
[Source "ChessBase"]
[SourceQuality "1"]
[TimeControl "40/5400+30:1800+30"]

{[%evp 11,66,33,39,19,26,8,16,13,12,29,2,9,5,12,12,0,0,-33,-25,-58,-59,-73,-70,-68,-73,-63,-61,-53,-57,-47,-54,-55,-58,-405,-433,-437,-428,-530,-302,-302,0,0,0,0,0,0,0,0,0,0,0,0,0,0,0,0,29992]} 1. d4 {[%emt 0:00:36]} Nf6 {[%emt 0:00:12]} 2. c4 {[%emt 0:00:09]} e6 {[%emt 0:00:09]} 3. Nf3 {[%emt 0:00:07]} Bb4+ {[%emt 0:00:46]} 4. Nbd2 {[%emt 0:00:08]} d5 {[%emt 0:00:14]} 5. Qa4+ {[%emt 0:00:10]} Nc6 {[%emt 0:00:10]} 6. a3 {[%emt 0:00:07]} Be7 {[%emt 0:00:09]} 7. Qc2 {[%emt 0:00:54] [#] E11: Bogo-Indian.} dxc4 $146 {[%emt 0:05:56]} ({Predecessor:} 7... a5 8. b3 O-O 9. Bb2 a4 10. b4 dxc4 11. Nxc4 b6 12. e3 Bb7 13. Be2 Bd6 14. O-O Ne7 {0-1 Jumabayev,R (2583)-Mamedyarov,S (2733) Wch Blitz Almaty 2022 (2)}) 8. e3 {[%emt 0:04:30]} b5 {[%emt 0:03:05]} 9. b3 {[%emt 0:00:18]} O-O {[%emt 0:02:42]} 10. bxc4 {[%emt 0:00:39]} bxc4 {[%emt 0:00:08]} 11. Nxc4 {[%emt 0:01:08]} Ba6 {[%emt 0:10:16]} 12. Bd3 {[%emt 0:06:57]} Rc8 {[%emt 0:03:08]} 13. Bb2 {[%emt 0:22:26]} Nb8 {[%emt 0:03:43]} 14. Ng5 {[%emt 0:15:52][%cal Rd3h7]} g6 {[%emt 0:02:09] Threatens to win with ...c5.} 15. h4 {[%emt 0:17:34]} c5 $1 {[%emt 0:01:01]} 16. d5 {[%emt 0:00:21]} exd5 {[%emt 0:01:58]} (16... Nxd5 17. Nxh7 Kxh7 18. Bxg6+ Kh6 19. g4 $11) 17. O-O-O $1 {[%emt 0:00:05][%cal Oh4h5]} Nc6 $1 {[%emt 0:23:04][%cal Oc6d4] Hoping for ...Nd4!} (17... Bxc4 18. Bxc4 Nc6 19. h5 $16) 18. h5 {[%emt 0:03:41][%cal Rh5g6] [#] hxg6! is the strong threat.} Nd4 $1 {[%emt 0:02:51]} 19. exd4 {[%emt 0:03:30]} cxd4 {[%emt 0:00:20]} 20. hxg6 $1 {[%emt 0:01:37]} hxg6 {[%emt 0:01:25]} 21. Bxg6 {[%emt 0:04:35]} Rxc4 {[%emt 0:05:39]} (21... dxc4 $2 22. Bh7+ Kh8 23. Rxd4 $18) 22. Rxd4 $2 {[%emt 0:02:27][%mdl 8192]} Rxc2+ $19 {[%emt 0:05:06]} 23. Bxc2 {[%emt 0:00:07][%cal Od4g4] [#] Rg4! would be deadly.} Qc8 {[%emt 0:05:40] Inhibits Rg4. White must now prevent ...Re8.} 24. Rh3 {[%emt 0:00:23]} Re8 {[%emt 0:07:02]} 25. Rdh4 {[%emt 0:01:54] [#] Prevents Bc5.} d4 $1 {[%emt 0:07:07]} 26. Bxd4 $40 {[%emt 0:03:03][%mdl 128] Threatening mate with Rh8+. Black needs to defend precisely. The position is equal.} Bxa3+ {[%emt 0:00:16]} 27. Rxa3 {[%emt 0:00:05]} Re1+ {[%emt 0:00:11]} ({Don't do} 27... Re2 28. Rc3 Re1+ 29. Kb2 Qb8+ 30. Bb3 $16 (30. Rb3 Qd6 $14)) 28. Kb2 {[%emt 0:00:05]} Re2 $1 {[%emt 0:00:04]} 29. Rc3 {[%emt 0:00:52]} Qb7+ {[%emt 0:00:54]} (29... Qf5 $2 30. Ne4 Rxc2+ 31. Kxc2 Qxe4+ 32. Rxe4 Nxe4 33. Rh3 $18) 30. Rb3 {[%emt 0:07:28]} Qc7 {[%emt 0:00:39]} (30... Qxg2 31. Rb8+) 31. Rc3 {[%emt 0:00:23] Dancing on a razor blade.} Qb7+ {[%emt 0:01:28]} (31... Qa5 $5) 32. Rb3 {[%emt 0:00:07]} Qc7 {[%emt 0:00:44]} (32... Qxg2 {is a self mate.} 33. Rb8+) (32... Qc8 $5 33. Rc3 $8 Qb8+ 34. Rb3 Qc7 $11) 33. Rc3 {[%emt 0:00:14]} Re8 $2 {[%emt 0:08:44][%mdl 40960] What a bad dream for Black. A brilliant game!   Weighted Error Value: White=0.27 (precise) /Black=0.36. An unexpected result.} 1/2-1/2

[Event "Alef Super Stars Standard 2023"]
[Site "Almamsha"]
[Date "2023.12.03"]
[Round "6.2"]
[White "Nihal Sarin"]
[Black "Sjugirov, Sanan"]
[Result "1/2-1/2"]
[ECO "D02"]
[WhiteElo "2692"]
[BlackElo "2703"]
[Annotator "TA"]
[PlyCount "49"]
[EventDate "2023.11.27"]
[EventType "tourn"]
[EventCountry "UAE"]
[SourceTitle "playchess.com"]
[Source "ChessBase"]
[SourceQuality "1"]
[TimeControl "40/5400+30:1800+30"]

{[%evp 9,49,6,12,8,12,11,14,12,17,18,14,13,14,13,16,20,25,7,5,0,0,-3,0,-4,0,0,0,0,0,0,0,0,2,0,0,0,0,0,0,0,0,0]} 1. d4 {[%emt 0:00:24]} Nf6 {[%emt 0:00:35]} 2. Nf3 {[%emt 0:00:08]} d5 {[%emt 0:00:20]} 3. Bf4 {[%emt 0:00:44]} Bf5 {[%emt 0:00:41]} 4. e3 {[%emt 0:02:00]} e6 {[%emt 0:00:09]} 5. Bd3 {[%emt 0:00:54]} c6 {[%emt 0:21:22]} 6. O-O {[%emt 0:01:25] D02: 1 d4 d5 2 Nf3 sidelines, including 2...Nf6 3 g3 and 2...Nf6 3 Bf4.} Bd6 {[%emt 0:03:12]} 7. Bxd6 {[%emt 0:11:44]} Qxd6 {[%emt 0:01:12] [#]} 8. c4 $146 {[%emt 0:01:02]} ({Predecessor:} 8. Ne5 Bxd3 9. cxd3 Nbd7 10. Nxd7 Nxd7 11. f4 O-O 12. Nd2 c5 13. dxc5 Qxc5 14. d4 {1-0 Salov,V (2250)-Ivanov,V (2197) St Petersburg Nov op 2008 (5)}) 8... Nbd7 {[%emt 0:07:11]} 9. Bxf5 {[%emt 0:10:26]} exf5 {[%emt 0:00:08]} 10. Qb3 {[%emt 0:00:34]} Rb8 {[%emt 0:05:22]} 11. Qa3 {[%emt 0:15:02]} Qxa3 {[%emt 0:00:43]} 12. Nxa3 {[%emt 0:00:09][%cal Bb1a3,Ba3c4,Bc4d2,Bd2b3,Bb3a5][%mdl 32]} Ke7 {[%emt 0:02:13]} 13. Rfc1 {[%emt 0:01:21]} Rhc8 {[%emt 0:23:29] The position is equal.} 14. Kf1 {[%emt 0:00:41]} dxc4 {[%emt 0:02:39]} 15. Nxc4 {[%emt 0:00:10]} c5 {[%emt 0:00:27]} 16. Ncd2 {[%emt 0:11:46]} cxd4 {[%emt 0:04:33]} 17. Nxd4 {[%emt 0:00:26]} g6 {[%emt 0:00:23]} 18. Ke2 {[%emt 0:00:32]} Nd5 {[%emt 0:01:30][%cal Bf6d5,Bd5b6,Bb6a4,Ba4b2][%mdl 32]} 19. N2b3 {[%emt 0:05:42]} N5b6 {[%emt 0:02:41]} 20. Na5 {[%emt 0:10:31]} Na4 {[%emt 0:01:47]} 21. Rxc8 {[%emt 0:05:59]} Rxc8 {[%emt 0:00:14]} 22. Nxb7 {[%emt 0:00:08]} Nxb2 {[%emt 0:00:40]} 23. Na5 {[%emt 0:02:00]} a6 {[%emt 0:05:20]} 24. Rb1 {[%emt 0:07:41]} Na4 {[%emt 0:00:45] [#] Strongly threatening ...Nc3+.} 25. Kd2 {[%emt 0:00:44] A rather calm draw.   Weighted Error Value: White=0.02 (flawless) /Black=0.01 (flawless)} 1/2-1/2